[Event "*** Titled Tuesday Blitz"]
[Site "Chess.com"]
[Date "2021.02.02"]
[Round "6"]
[White "CzechmVIII"]
[Black "WonderChampion"]
[Result "1-0"]
[WhiteElo "2271"]
[BlackElo "2067"]
[TimeControl "180+1"]
[EndTime "11:06:47 PST"]
[Termination "CzechmVIII won by checkmate"]

1. e4 {[%clk 0:03:00.9]} 1... c5 {[%clk 0:02:59.2]} 2. Nf3 {[%clk 0:03:00.8]}
2... g6 {[%clk 0:02:59.2]} 3. d4 {[%clk 0:03:00.3]} 3... cxd4 {[%clk 0:02:59.1]}
4. Qxd4 {[%clk 0:03:01]} 4... Nf6 {[%clk 0:02:57.3]} 5. Nc3 {[%clk 0:03:00.5]}
5... Bg7 {[%clk 0:02:56.3]} 6. e5 {[%clk 0:02:59.7]} 6... Nc6 {[%clk 0:02:55.9]}
7. Qa4 {[%clk 0:02:59.9]} 7... Ng8 {[%clk 0:02:54.6]} 8. Bf4 {[%clk 0:03:00]}
8... f6 {[%clk 0:02:53.6]} 9. exf6 {[%clk 0:02:32.7]} 9... Nxf6 {[%clk 0:02:53]}
10. Bc4 {[%clk 0:02:24.7]} 10... d5 {[%clk 0:02:47.8]} 11. O-O-O {[%clk
0:02:21.7]} 11... Be6 {[%clk 0:02:45.4]} 12. Ng5 {[%clk 0:02:10.3]} 12... Qd7
{[%clk 0:02:30.6]} 13. Nxe6 {[%clk 0:02:01.2]} 13... Qxe6 {[%clk 0:02:31.5]} 14.
Rhe1 {[%clk 0:02:01.2]} 14... Qf7 {[%clk 0:02:22.5]} 15. Nxd5 {[%clk 0:01:54.5]}
15... Nxd5 {[%clk 0:02:22.1]} 16. Bxd5 {[%clk 0:01:54.5]} 16... Qf6 {[%clk
0:02:19.9]} 17. Be5 {[%clk 0:01:29.6]} 17... Qg5+ {[%clk 0:01:57]} 18. f4 {[%clk
0:01:29.4]} 18... Qh6 {[%clk 0:01:51.6]} 19. Bxc6+ {[%clk 0:01:23.8]} 19... bxc6
{[%clk 0:01:50.7]} 20. Qxc6+ {[%clk 0:01:23.9]} 20... Kf7 {[%clk 0:01:50.8]} 21.
Qd5+ {[%clk 0:01:12]} 21... Ke8 {[%clk 0:01:40.1]} 22. Qxa8+ {[%clk 0:01:10.8]}
22... Kf7 {[%clk 0:01:38]} 23. Qd5+ {[%clk 0:01:09.5]} 23... Ke8 {[%clk
0:01:36.8]} 24. Bxg7 {[%clk 0:00:50.8]} 24... Qxg7 {[%clk 0:01:35.2]} 25. Qc6+
{[%clk 0:00:49.2]} 25... Kf7 {[%clk 0:01:30.4]} 26. Qe6+ {[%clk 0:00:42.1]}
26... Ke8 {[%clk 0:01:29.8]} 27. Rd7 {[%clk 0:00:32.8]} 27... Qf7 {[%clk
0:01:23.7]} 28. Rxe7+ {[%clk 0:00:30.8]} 28... Qxe7 {[%clk 0:01:23.6]} 29. Qxe7#
{[%clk 0:00:30.9]} 1-0

[Event "*** Titled Tuesday Blitz"]
[Site "Chess.com"]
[Date "2021.02.02"]
[Round "6"]
[White "Rsnr"]
[Black "LyonBeast"]
[Result "0-1"]
[WhiteElo "2787"]
[BlackElo "3101"]
[TimeControl "180+1"]
[EndTime "11:06:53 PST"]
[Termination "LyonBeast won by resignation"]

1. d4 {[%clk 0:03:00.9]} 1... d5 {[%clk 0:02:55.1]} 2. c4 {[%clk 0:03:01.2]}
2... c6 {[%clk 0:02:50.6]} 3. Nf3 {[%clk 0:03:00.8]} 3... Nf6 {[%clk 0:02:50.4]}
4. Nc3 {[%clk 0:02:57.6]} 4... e6 {[%clk 0:02:44.7]} 5. Bg5 {[%clk 0:02:57]}
5... h6 {[%clk 0:02:43.5]} 6. Bh4 {[%clk 0:02:57.2]} 6... Nbd7 {[%clk
0:02:37.3]} 7. e3 {[%clk 0:02:56.8]} 7... Bd6 {[%clk 0:02:36.9]} 8. Qc2 {[%clk
0:02:37.2]} 8... a6 {[%clk 0:02:30.5]} 9. Bd3 {[%clk 0:02:25.1]} 9... b5 {[%clk
0:02:28.9]} 10. b3 {[%clk 0:02:16.3]} 10... Bb7 {[%clk 0:02:25.6]} 11. O-O
{[%clk 0:02:16.3]} 11... O-O {[%clk 0:02:24.3]} 12. Bg3 {[%clk 0:02:15.1]} 12...
Qe7 {[%clk 0:02:09.5]} 13. e4 {[%clk 0:01:56.2]} 13... Bxg3 {[%clk 0:02:04.2]}
14. hxg3 {[%clk 0:01:57.1]} 14... b4 {[%clk 0:02:04.6]} 15. e5 {[%clk
0:01:53.6]} 15... bxc3 {[%clk 0:02:03.7]} 16. exf6 {[%clk 0:01:54]} 16... Qxf6
{[%clk 0:02:03.8]} 17. Qxc3 {[%clk 0:01:53.9]} 17... c5 {[%clk 0:02:04.4]} 18.
Rfd1 {[%clk 0:01:41.4]} 18... Rfd8 {[%clk 0:01:58.8]} 19. Rac1 {[%clk 0:01:40]}
19... cxd4 {[%clk 0:01:54.6]} 20. Nxd4 {[%clk 0:01:31.2]} 20... e5 {[%clk
0:01:50]} 21. Nf5 {[%clk 0:00:15]} 21... d4 {[%clk 0:01:49.7]} 22. Qc2 {[%clk
0:00:15.4]} 22... Nc5 {[%clk 0:01:47.5]} 23. g4 {[%clk 0:00:12.2]} 23... h5
{[%clk 0:01:37]} 24. gxh5 {[%clk 0:00:05.4]} 24... e4 {[%clk 0:01:36]} 0-1

[Event "*** Titled Tuesday Blitz"]
[Site "Chess.com"]
[Date "2021.02.02"]
[Round "6"]
[White "utsavp"]
[Black "cukin84"]
[Result "1-0"]
[WhiteElo "2299"]
[BlackElo "2132"]
[TimeControl "180+1"]
[EndTime "11:06:53 PST"]
[Termination "utsavp won by resignation"]

1. e4 {[%clk 0:02:56.5]} 1... c6 {[%clk 0:02:58.8]} 2. Nf3 {[%clk 0:02:55.2]}
2... d5 {[%clk 0:02:58.8]} 3. Nc3 {[%clk 0:02:56.1]} 3... Nf6 {[%clk 0:02:57.5]}
4. e5 {[%clk 0:02:55.2]} 4... Ne4 {[%clk 0:02:57.2]} 5. d4 {[%clk 0:02:54.2]}
5... Bg4 {[%clk 0:02:54]} 6. Bd3 {[%clk 0:02:45.8]} 6... Nxc3 {[%clk 0:02:49.7]}
7. bxc3 {[%clk 0:02:46.7]} 7... e6 {[%clk 0:02:50]} 8. h3 {[%clk 0:02:40.6]}
8... Bh5 {[%clk 0:02:49.5]} 9. g4 {[%clk 0:02:39.5]} 9... Bg6 {[%clk 0:02:49]}
10. Bg5 {[%clk 0:02:39.3]} 10... Be7 {[%clk 0:02:48.3]} 11. Bxe7 {[%clk
0:02:37.7]} 11... Qxe7 {[%clk 0:02:48]} 12. h4 {[%clk 0:02:37.1]} 12... Nd7
{[%clk 0:02:43.8]} 13. h5 {[%clk 0:02:35.7]} 13... Bxd3 {[%clk 0:02:42.6]} 14.
Qxd3 {[%clk 0:02:36.3]} 14... c5 {[%clk 0:02:40.3]} 15. Kf1 {[%clk 0:02:26]}
15... b6 {[%clk 0:02:38]} 16. Kg2 {[%clk 0:02:24.1]} 16... O-O {[%clk
0:02:16.7]} 17. g5 {[%clk 0:02:18.5]} 17... f6 {[%clk 0:02:12.8]} 18. gxf6
{[%clk 0:02:00.1]} 18... gxf6 {[%clk 0:02:12.1]} 19. Rag1 {[%clk 0:02:00.1]}
19... fxe5 {[%clk 0:02:06.4]} 20. Kf1+ {[%clk 0:01:50.3]} 20... Kh8 {[%clk
0:02:06.4]} 21. Nxe5 {[%clk 0:01:34.5]} 21... Nxe5 {[%clk 0:02:04.7]} 22. dxe5
{[%clk 0:01:33.1]} 22... Rf5 {[%clk 0:02:04.7]} 23. h6 {[%clk 0:01:27]} 23...
Raf8 {[%clk 0:02:01.4]} 24. Rh2 {[%clk 0:01:25.3]} 24... Qc7 {[%clk 0:01:47.8]}
25. Qg3 {[%clk 0:01:04.3]} 25... R5f7 {[%clk 0:01:17.4]} 26. Rhg2 {[%clk
0:01:01.4]} 26... Qc8 {[%clk 0:01:07.1]} 27. Qg7+ {[%clk 0:00:55.8]} 27... Rxg7
{[%clk 0:01:07.1]} 28. hxg7+ {[%clk 0:00:56.3]} 28... Kg8 {[%clk 0:01:07.4]} 29.
gxf8=Q+ {[%clk 0:00:57.2]} 29... Kxf8 {[%clk 0:01:07.5]} 30. Rg8+ {[%clk
0:00:56.4]} 1-0

[Event "*** Titled Tuesday Blitz"]
[Site "Chess.com"]
[Date "2021.02.02"]
[Round "6"]
[White "VladimirPotkin"]
[Black "Grimlock_Glasgow"]
[Result "1-0"]
[WhiteElo "2656"]
[BlackElo "2489"]
[TimeControl "180+1"]
[EndTime "11:06:54 PST"]
[Termination "VladimirPotkin won by resignation"]

1. c4 {[%clk 0:02:49.7]} 1... f5 {[%clk 0:02:58.1]} 2. d4 {[%clk 0:02:43.1]}
2... Nf6 {[%clk 0:02:58.3]} 3. g3 {[%clk 0:02:43.4]} 3... e6 {[%clk 0:02:58.5]}
4. Bg2 {[%clk 0:02:44]} 4... d5 {[%clk 0:02:59.1]} 5. Nh3 {[%clk 0:02:42.9]}
5... Bd6 {[%clk 0:02:58.8]} 6. O-O {[%clk 0:02:42]} 6... O-O {[%clk 0:02:58.7]}
7. Bf4 {[%clk 0:02:42.3]} 7... Be7 {[%clk 0:02:58.5]} 8. Nc3 {[%clk 0:02:42]}
8... h6 {[%clk 0:02:53.8]} 9. Be5 {[%clk 0:02:36.5]} 9... c6 {[%clk 0:02:35.5]}
10. Nf4 {[%clk 0:02:36.5]} 10... Bd6 {[%clk 0:02:24.1]} 11. Ng6 {[%clk
0:02:35.3]} 11... Re8 {[%clk 0:02:21.7]} 12. Qc2 {[%clk 0:02:28.8]} 12... Bxe5
{[%clk 0:02:13.4]} 13. Nxe5 {[%clk 0:02:25.2]} 13... Nbd7 {[%clk 0:02:11.6]} 14.
cxd5 {[%clk 0:02:21.8]} 14... exd5 {[%clk 0:02:02.7]} 15. f4 {[%clk 0:02:20.7]}
15... Nb6 {[%clk 0:01:56.5]} 16. b4 {[%clk 0:02:19.6]} 16... a6 {[%clk
0:01:42.4]} 17. a4 {[%clk 0:02:19.5]} 17... Be6 {[%clk 0:01:26.5]} 18. b5 {[%clk
0:02:17.9]} 18... cxb5 {[%clk 0:01:24.6]} 19. axb5 {[%clk 0:02:18.8]} 19... a5
{[%clk 0:01:24.8]} 20. Na4 {[%clk 0:02:15.9]} 20... Nxa4 {[%clk 0:01:16.2]} 21.
Qxa4 {[%clk 0:02:15]} 21... Ne4 {[%clk 0:00:59.3]} 22. Rfc1 {[%clk 0:02:11.4]}
22... Qd6 {[%clk 0:00:53.6]} 23. Bf3 {[%clk 0:02:02.3]} 23... Qb4 {[%clk
0:00:41.7]} 24. Qxb4 {[%clk 0:01:58.6]} 24... axb4 {[%clk 0:00:42.6]} 25. Rab1
{[%clk 0:01:57.5]} 25... Ra4 {[%clk 0:00:40.5]} 26. Rc7 {[%clk 0:01:54.4]} 26...
Nc3 {[%clk 0:00:36.6]} 27. Rb2 {[%clk 0:01:50.6]} 27... Ra2 {[%clk 0:00:16.7]}
28. Rxb4 {[%clk 0:01:44.1]} 28... Rb8 {[%clk 0:00:06.4]} 29. Rxc3 {[%clk
0:01:42.5]} 1-0

[Event "*** Titled Tuesday Blitz"]
[Site "Chess.com"]
[Date "2021.02.02"]
[Round "6"]
[White "mshuaau0"]
[Black "akanga001"]
[Result "1-0"]
[WhiteElo "2266"]
[BlackElo "1981"]
[TimeControl "180+1"]
[EndTime "11:06:55 PST"]
[Termination "mshuaau0 won by resignation"]

1. e4 {[%clk 0:03:00.9]} 1... c6 {[%clk 0:02:54.7]} 2. Nf3 {[%clk 0:03:01]} 2...
d5 {[%clk 0:02:54.9]} 3. e5 {[%clk 0:03:01.1]} 3... Bg4 {[%clk 0:02:51.7]} 4. d4
{[%clk 0:03:00.1]} 4... e6 {[%clk 0:02:52]} 5. Nbd2 {[%clk 0:02:58.3]} 5... Ne7
{[%clk 0:02:48.9]} 6. h3 {[%clk 0:02:57.9]} 6... Bh5 {[%clk 0:02:48.5]} 7. Nb3
{[%clk 0:02:51.7]} 7... Nc8 {[%clk 0:02:45.6]} 8. Be2 {[%clk 0:02:51.2]} 8...
Nb6 {[%clk 0:02:45.5]} 9. O-O {[%clk 0:02:49.4]} 9... N8d7 {[%clk 0:02:45.7]}
10. Be3 {[%clk 0:02:47.3]} 10... Rc8 {[%clk 0:02:44.6]} 11. Nfd2 {[%clk
0:02:45.5]} 11... Bxe2 {[%clk 0:02:43]} 12. Qxe2 {[%clk 0:02:46.4]} 12... c5
{[%clk 0:02:43.6]} 13. dxc5 {[%clk 0:02:44.2]} 13... Nxc5 {[%clk 0:02:42.3]} 14.
c4 {[%clk 0:02:38.3]} 14... dxc4 {[%clk 0:02:36.3]} 15. Nxc4 {[%clk 0:02:25.6]}
15... Nxb3 {[%clk 0:02:36.4]} 16. axb3 {[%clk 0:02:24.8]} 16... Nxc4 {[%clk
0:02:33.2]} 17. bxc4 {[%clk 0:02:23.9]} 17... a6 {[%clk 0:02:33.6]} 18. Rfd1
{[%clk 0:02:15.7]} 18... Qc7 {[%clk 0:02:33.6]} 19. Rac1 {[%clk 0:02:12.6]}
19... Be7 {[%clk 0:02:33.5]} 20. f4 {[%clk 0:02:10.7]} 20... O-O {[%clk
0:02:33.4]} 21. c5 {[%clk 0:02:06.4]} 21... Rfd8 {[%clk 0:02:32.4]} 22. b4
{[%clk 0:02:06.4]} 22... Qc6 {[%clk 0:02:26.9]} 23. Rxd8+ {[%clk 0:01:58.2]}
23... Rxd8 {[%clk 0:02:26.1]} 24. Rd1 {[%clk 0:01:58.3]} 24... Qe4 {[%clk
0:02:11]} 25. Rxd8+ {[%clk 0:01:57.4]} 25... Bxd8 {[%clk 0:02:11.1]} 26. Qd2
{[%clk 0:01:58.3]} 26... Bc7 {[%clk 0:02:09.5]} 27. Qd4 {[%clk 0:01:57.5]} 27...
Qxd4 {[%clk 0:02:07]} 28. Bxd4 {[%clk 0:01:58.4]} 28... Kf8 {[%clk 0:02:07.3]}
29. Kf2 {[%clk 0:01:58.9]} 29... Ke8 {[%clk 0:02:07.8]} 30. Ke3 {[%clk
0:01:59.5]} 30... Kd7 {[%clk 0:02:08.5]} 31. Kd3 {[%clk 0:02:00.1]} 31... Kc6
{[%clk 0:02:09.3]} 32. Kc4 {[%clk 0:02:00.1]} 32... b6 {[%clk 0:02:05.7]} 33. g4
{[%clk 0:01:35.9]} 33... b5+ {[%clk 0:01:55.7]} 34. Kd3 {[%clk 0:01:33.9]} 34...
Kd5 {[%clk 0:01:56.6]} 35. Bc3 {[%clk 0:01:33.9]} 35... Bd8 {[%clk 0:01:52.5]}
36. Be1 {[%clk 0:01:29.5]} 36... f6 {[%clk 0:01:52.9]} 37. exf6 {[%clk
0:01:28.3]} 37... gxf6 {[%clk 0:01:53.8]} 38. Ke3 {[%clk 0:01:27.6]} 38... e5
{[%clk 0:01:54.1]} 39. f5 {[%clk 0:01:20.9]} 39... Be7 {[%clk 0:01:51.1]} 40.
Bd2 {[%clk 0:01:15.9]} 40... Bf8 {[%clk 0:01:49]} 41. Kf3 {[%clk 0:01:14.6]}
41... Kc4 {[%clk 0:01:48.3]} 42. Ke4 {[%clk 0:01:12.3]} 42... a5 {[%clk
0:01:44]} 43. c6 {[%clk 0:01:10.1]} 43... Bd6 {[%clk 0:01:43.9]} 44. bxa5 {[%clk
0:01:09]} 44... b4 {[%clk 0:01:44.2]} 45. a6 {[%clk 0:01:05.1]} 45... Bc7 {[%clk
0:01:44.5]} 46. a7 {[%clk 0:01:04.4]} 46... b3 {[%clk 0:01:45.4]} 47. a8=Q
{[%clk 0:01:04.5]} 47... b2 {[%clk 0:01:46.3]} 48. Qb7 {[%clk 0:01:04.9]} 48...
b1=Q+ {[%clk 0:01:45]} 49. Qxb1 {[%clk 0:01:05]} 1-0

[Event "*** Titled Tuesday Blitz"]
[Site "Chess.com"]
[Date "2021.02.02"]
[Round "6"]
[White "lachesisQ"]
[Black "Blitzstream"]
[Result "1-0"]
[WhiteElo "3065"]
[BlackElo "2753"]
[TimeControl "180+1"]
[EndTime "11:06:58 PST"]
[Termination "lachesisQ won by checkmate"]

1. b3 {[%clk 0:03:00.9]} 1... e5 {[%clk 0:02:59.9]} 2. Bb2 {[%clk 0:03:01.8]}
2... Nc6 {[%clk 0:03:00.3]} 3. Nf3 {[%clk 0:03:01.6]} 3... d6 {[%clk 0:02:59.1]}
4. d4 {[%clk 0:02:58.3]} 4... exd4 {[%clk 0:02:49.9]} 5. Nxd4 {[%clk 0:02:57.8]}
5... Nxd4 {[%clk 0:02:50.2]} 6. Qxd4 {[%clk 0:02:57.4]} 6... Nf6 {[%clk
0:02:49]} 7. Nc3 {[%clk 0:02:57.1]} 7... Be7 {[%clk 0:02:42.9]} 8. O-O-O {[%clk
0:02:51.4]} 8... Be6 {[%clk 0:02:40.5]} 9. e4 {[%clk 0:02:50.8]} 9... O-O {[%clk
0:02:39]} 10. f4 {[%clk 0:02:46.2]} 10... c5 {[%clk 0:02:09.5]} 11. Qd2 {[%clk
0:02:43.2]} 11... c4 {[%clk 0:01:49.3]} 12. f5 {[%clk 0:02:41.3]} 12... Bd7
{[%clk 0:01:10.8]} 13. Bxc4 {[%clk 0:02:39.7]} 13... Bc6 {[%clk 0:01:11.2]} 14.
Rhe1 {[%clk 0:02:31.9]} 14... Nd7 {[%clk 0:00:57]} 15. Kb1 {[%clk 0:02:30.2]}
15... Ne5 {[%clk 0:00:57.2]} 16. Bd5 {[%clk 0:02:29.2]} 16... Rc8 {[%clk
0:00:55.8]} 17. Bxc6 {[%clk 0:02:25.6]} 17... bxc6 {[%clk 0:00:55.8]} 18. Ne2
{[%clk 0:02:25.1]} 18... Qb6 {[%clk 0:00:47.2]} 19. Ng3 {[%clk 0:02:15.9]} 19...
Rb8 {[%clk 0:00:31.8]} 20. Nh5 {[%clk 0:02:13.7]} 20... f6 {[%clk 0:00:27.7]}
21. Nf4 {[%clk 0:02:08.9]} 21... d5 {[%clk 0:00:21.7]} 22. Bxe5 {[%clk
0:01:49.2]} 22... fxe5 {[%clk 0:00:21.7]} 23. Ne6 {[%clk 0:01:49.3]} 23... d4
{[%clk 0:00:20.6]} 24. Nxf8 {[%clk 0:01:46.3]} 24... Kxf8 {[%clk 0:00:21.3]} 25.
c3 {[%clk 0:01:42.1]} 25... Bc5 {[%clk 0:00:20.7]} 26. f6 {[%clk 0:01:39.6]}
26... gxf6 {[%clk 0:00:19]} 27. Qh6+ {[%clk 0:01:39.4]} 27... Ke7 {[%clk
0:00:18.2]} 28. Qxh7+ {[%clk 0:01:36.8]} 28... Ke6 {[%clk 0:00:18.5]} 29. Rf1
{[%clk 0:01:35]} 29... Rf8 {[%clk 0:00:18.4]} 30. g4 {[%clk 0:01:31.5]} 30...
dxc3 {[%clk 0:00:17.6]} 31. Qd7# {[%clk 0:01:30.9]} 1-0

[Event "*** Titled Tuesday Blitz"]
[Site "Chess.com"]
[Date "2021.02.02"]
[Round "6"]
[White "Skatchkov_V"]
[Black "Loy_Konstantin"]
[Result "1-0"]
[WhiteElo "2536"]
[BlackElo "2370"]
[TimeControl "180+1"]
[EndTime "11:06:58 PST"]
[Termination "Skatchkov_V won by resignation"]

1. e4 {[%clk 0:03:00.2]} 1... c5 {[%clk 0:02:59.7]} 2. Nc3 {[%clk 0:02:58.9]}
2... Nc6 {[%clk 0:02:58.4]} 3. g3 {[%clk 0:02:59.5]} 3... g6 {[%clk 0:02:58.3]}
4. Bg2 {[%clk 0:03:00.1]} 4... Bg7 {[%clk 0:02:58.9]} 5. Nge2 {[%clk 0:02:50.7]}
5... e6 {[%clk 0:02:58.7]} 6. O-O {[%clk 0:02:49]} 6... Nge7 {[%clk 0:02:58.5]}
7. d3 {[%clk 0:02:48.3]} 7... O-O {[%clk 0:02:58.1]} 8. Be3 {[%clk 0:02:47.9]}
8... Nd4 {[%clk 0:02:42.4]} 9. Qd2 {[%clk 0:02:44]} 9... d5 {[%clk 0:02:33.6]}
10. exd5 {[%clk 0:02:42.6]} 10... Nxd5 {[%clk 0:02:32.7]} 11. Bxd4 {[%clk
0:02:37.9]} 11... cxd4 {[%clk 0:02:30]} 12. Nxd5 {[%clk 0:02:35.4]} 12... exd5
{[%clk 0:02:30.1]} 13. Nf4 {[%clk 0:02:26.7]} 13... Be6 {[%clk 0:02:10.8]} 14.
Nxe6 {[%clk 0:02:26.6]} 14... fxe6 {[%clk 0:02:11.7]} 15. Rae1 {[%clk
0:02:27.5]} 15... Qd6 {[%clk 0:01:55.3]} 16. f4 {[%clk 0:02:25.5]} 16... Rac8
{[%clk 0:01:44]} 17. Re2 {[%clk 0:02:25.3]} 17... e5 {[%clk 0:01:26.1]} 18. fxe5
{[%clk 0:02:08.1]} 18... Rxf1+ {[%clk 0:01:25]} 19. Kxf1 {[%clk 0:02:09]} 19...
Bxe5 {[%clk 0:01:22.8]} 20. Qa5 {[%clk 0:02:09]} 20... Rf8+ {[%clk 0:01:11.7]}
21. Kg1 {[%clk 0:02:09]} 21... Bg7 {[%clk 0:00:37.4]} 22. Qxa7 {[%clk
0:02:06.8]} 22... Bh6 {[%clk 0:00:30.3]} 23. Qxd4 {[%clk 0:02:04.9]} 23... Rd8
{[%clk 0:00:08.9]} 24. Re5 {[%clk 0:02:00.8]} 24... Bg7 {[%clk 0:00:08]} 25.
Qxd5+ {[%clk 0:01:58.1]} 25... Qxd5 {[%clk 0:00:08.3]} 26. Rxd5 {[%clk
0:01:58.8]} 26... Rxd5 {[%clk 0:00:08.1]} 27. Bxd5+ {[%clk 0:01:59.7]} 27... Kf8
{[%clk 0:00:07.7]} 28. Bxb7 {[%clk 0:02:00.1]} 28... Bxb2 {[%clk 0:00:07.8]} 29.
Kf2 {[%clk 0:02:00]} 29... Ke7 {[%clk 0:00:08.1]} 30. Kf3 {[%clk 0:01:59.8]}
30... Kd6 {[%clk 0:00:09]} 31. Ke4 {[%clk 0:02:00.3]} 31... h6 {[%clk
0:00:08.5]} 32. a4 {[%clk 0:01:58.8]} 32... Bc3 {[%clk 0:00:08.5]} 33. d4 {[%clk
0:01:59.2]} 33... Ba5 {[%clk 0:00:08.2]} 34. c4 {[%clk 0:01:59.2]} 1-0

[Event "*** Titled Tuesday Blitz"]
[Site "Chess.com"]
[Date "2021.02.02"]
[Round "6"]
[White "KeithArkell"]
[Black "andrewtnb"]
[Result "1-0"]
[WhiteElo "2428"]
[BlackElo "2288"]
[TimeControl "180+1"]
[EndTime "11:06:59 PST"]
[Termination "KeithArkell won on time"]

1. d4 {[%clk 0:03:00.9]} 1... Nf6 {[%clk 0:02:57.5]} 2. Nf3 {[%clk 0:03:01]}
2... e6 {[%clk 0:02:56.6]} 3. c4 {[%clk 0:03:01.1]} 3... d5 {[%clk 0:02:53.7]}
4. cxd5 {[%clk 0:03:00.6]} 4... exd5 {[%clk 0:02:51.4]} 5. Nc3 {[%clk
0:03:00.8]} 5... c6 {[%clk 0:02:42.3]} 6. Qc2 {[%clk 0:02:58.2]} 6... g6 {[%clk
0:02:41.2]} 7. Bg5 {[%clk 0:02:57]} 7... Be7 {[%clk 0:02:17]} 8. Bxf6 {[%clk
0:02:55.3]} 8... Bxf6 {[%clk 0:02:16.3]} 9. e3 {[%clk 0:02:55.4]} 9... O-O
{[%clk 0:02:14.3]} 10. b4 {[%clk 0:02:54.2]} 10... a5 {[%clk 0:02:10.1]} 11. b5
{[%clk 0:02:51.4]} 11... Bf5 {[%clk 0:02:04.8]} 12. Bd3 {[%clk 0:02:50.5]} 12...
Bxd3 {[%clk 0:02:05]} 13. Qxd3 {[%clk 0:02:50.9]} 13... Nd7 {[%clk 0:02:05.7]}
14. bxc6 {[%clk 0:02:50.6]} 14... bxc6 {[%clk 0:02:05.1]} 15. Rc1 {[%clk
0:02:51.2]} 15... c5 {[%clk 0:02:02]} 16. Nxd5 {[%clk 0:02:50.2]} 16... cxd4
{[%clk 0:02:01.8]} 17. Nxf6+ {[%clk 0:02:50.1]} 17... Nxf6 {[%clk 0:01:52.8]}
18. Qxd4 {[%clk 0:02:51]} 18... Qxd4 {[%clk 0:01:49.2]} 19. Nxd4 {[%clk
0:02:50.2]} 19... Rab8 {[%clk 0:01:47.1]} 20. Ke2 {[%clk 0:02:41.4]} 20... Nd5
{[%clk 0:01:37.1]} 21. Rc2 {[%clk 0:02:40.6]} 21... Rfc8 {[%clk 0:01:16.8]} 22.
Rhc1 {[%clk 0:02:39.2]} 22... Rxc2+ {[%clk 0:01:15.9]} 23. Rxc2 {[%clk
0:02:40.1]} 23... Rb1 {[%clk 0:01:13.5]} 24. Rc5 {[%clk 0:02:34.8]} 24... Rb2+
{[%clk 0:01:03.2]} 25. Kf3 {[%clk 0:02:33]} 25... Nb4 {[%clk 0:00:58.9]} 26.
Rxa5 {[%clk 0:02:25.9]} 26... Nxa2 {[%clk 0:00:46.1]} 27. Ra8+ {[%clk
0:02:06.7]} 27... Kg7 {[%clk 0:00:44.4]} 28. Ra7 {[%clk 0:02:07.2]} 28... Nb4
{[%clk 0:00:38.8]} 29. Ne6+ {[%clk 0:02:02.7]} 29... Kf6 {[%clk 0:00:36.1]} 30.
Nd8 {[%clk 0:02:02.4]} 30... Nd3 {[%clk 0:00:28.6]} 31. Rxf7+ {[%clk 0:02:02.1]}
31... Kg5 {[%clk 0:00:28.6]} 32. Kg3 {[%clk 0:02:02.6]} 32... h5 {[%clk
0:00:24.6]} 33. h4+ {[%clk 0:01:59.4]} 33... Kh6 {[%clk 0:00:24.5]} 34. Ne6
{[%clk 0:01:59.2]} 1-0

[Event "*** Titled Tuesday Blitz"]
[Site "Chess.com"]
[Date "2021.02.02"]
[Round "6"]
[White "Skat2704"]
[Black "pheonixking2000"]
[Result "0-1"]
[WhiteElo "2511"]
[BlackElo "2726"]
[TimeControl "180+1"]
[EndTime "11:07:02 PST"]
[Termination "pheonixking2000 won by resignation"]

1. d4 {[%clk 0:03:00.9]} 1... d5 {[%clk 0:02:59.9]} 2. Nf3 {[%clk 0:03:01]} 2...
Bf5 {[%clk 0:02:58.9]} 3. c4 {[%clk 0:02:59.9]} 3... e6 {[%clk 0:02:59.4]} 4.
Nc3 {[%clk 0:02:59.5]} 4... Nf6 {[%clk 0:02:58.7]} 5. Bg5 {[%clk 0:02:59.1]}
5... c6 {[%clk 0:02:58.4]} 6. e3 {[%clk 0:02:54.8]} 6... Nbd7 {[%clk 0:02:57.1]}
7. Bd3 {[%clk 0:02:54.5]} 7... Bxd3 {[%clk 0:02:54.5]} 8. Qxd3 {[%clk 0:02:54]}
8... Bb4 {[%clk 0:02:53.1]} 9. O-O {[%clk 0:02:53.1]} 9... O-O {[%clk
0:02:53.6]} 10. a3 {[%clk 0:02:44.7]} 10... Bxc3 {[%clk 0:02:53.4]} 11. bxc3
{[%clk 0:02:43.6]} 11... Qa5 {[%clk 0:02:52.2]} 12. Bxf6 {[%clk 0:02:19.5]}
12... Nxf6 {[%clk 0:02:50.4]} 13. Rfb1 {[%clk 0:02:18.4]} 13... Qa6 {[%clk
0:02:50.1]} 14. Ne5 {[%clk 0:02:12.9]} 14... Rfd8 {[%clk 0:02:50.6]} 15. Qf1
{[%clk 0:02:07]} 15... dxc4 {[%clk 0:02:51.4]} 16. Qxc4 {[%clk 0:02:04.8]} 16...
Qxc4 {[%clk 0:02:51.9]} 17. Nxc4 {[%clk 0:02:04.9]} 17... b6 {[%clk 0:02:52.8]}
18. Ne5 {[%clk 0:02:00]} 18... Rac8 {[%clk 0:02:52.3]} 19. h3 {[%clk 0:01:59]}
19... c5 {[%clk 0:02:52.6]} 20. a4 {[%clk 0:01:58.7]} 20... Ne4 {[%clk
0:02:52.4]} 21. Rc1 {[%clk 0:01:49.1]} 21... f6 {[%clk 0:02:50.5]} 22. Nf3
{[%clk 0:01:43.8]} 22... Kf7 {[%clk 0:02:49.3]} 23. a5 {[%clk 0:01:43.6]} 23...
b5 {[%clk 0:02:49.3]} 24. Kf1 {[%clk 0:01:27]} 24... a6 {[%clk 0:02:47.5]} 25.
Ke2 {[%clk 0:01:26.7]} 25... cxd4 {[%clk 0:02:47.1]} 26. cxd4 {[%clk 0:01:25.6]}
26... Ke7 {[%clk 0:02:45.6]} 27. Nd2 {[%clk 0:01:21.9]} 27... Nxd2 {[%clk
0:02:42.2]} 28. Kxd2 {[%clk 0:01:21.9]} 28... Kd7 {[%clk 0:02:40.8]} 29. Kd3
{[%clk 0:01:14.5]} 29... g6 {[%clk 0:02:38.9]} 30. h4 {[%clk 0:01:13.4]} 30...
f5 {[%clk 0:02:39]} 31. g3 {[%clk 0:01:13.2]} 31... h6 {[%clk 0:02:38.7]} 32.
Rc3 {[%clk 0:01:10.6]} 32... Rxc3+ {[%clk 0:02:37.9]} 33. Kxc3 {[%clk
0:01:10.7]} 33... Rc8+ {[%clk 0:02:38.8]} 34. Kb3 {[%clk 0:01:07.3]} 34... Rc4
{[%clk 0:02:36.1]} 35. Ra2 {[%clk 0:01:05.6]} 35... Rc1 {[%clk 0:02:33]} 36. Rc2
{[%clk 0:00:56.6]} 36... Ra1 {[%clk 0:02:32.5]} 37. Kb4 {[%clk 0:00:55.1]} 37...
Ra4+ {[%clk 0:02:31.9]} 38. Kc5 {[%clk 0:00:55.2]} 38... Rxa5 {[%clk 0:02:31.5]}
39. Kb6 {[%clk 0:00:47.3]} 39... Ra1 {[%clk 0:02:31.1]} 40. Rc7+ {[%clk
0:00:46.8]} 40... Kd6 {[%clk 0:02:31.6]} 41. Rc6+ {[%clk 0:00:45.3]} 41... Kd5
{[%clk 0:02:30.5]} 42. Rc5+ {[%clk 0:00:45.6]} 42... Ke4 {[%clk 0:02:30.2]} 43.
Re5+ {[%clk 0:00:45.5]} 43... Kf3 {[%clk 0:02:28.9]} 44. Rxe6 {[%clk 0:00:45.5]}
44... b4 {[%clk 0:02:29.8]} 45. d5 {[%clk 0:00:43.8]} 45... b3 {[%clk
0:02:28.8]} 46. d6 {[%clk 0:00:23.4]} 46... b2 {[%clk 0:02:28.4]} 47. d7 {[%clk
0:00:23]} 47... b1=Q+ {[%clk 0:02:28]} 48. Kc7 {[%clk 0:00:23]} 48... Qc2+
{[%clk 0:02:25.5]} 49. Rc6 {[%clk 0:00:22.4]} 49... Qxc6+ {[%clk 0:02:25.7]} 50.
Kxc6 {[%clk 0:00:22.8]} 50... Rd1 {[%clk 0:02:26.6]} 51. Kc7 {[%clk 0:00:21.7]}
51... a5 {[%clk 0:02:27.1]} 0-1